[Event "Early-Titled-Tuesday-Blitz-May-14-2024"]
[Site "Chess.com"]
[Date "2024.05.14"]
[Round "5"]
[White "Viktoker"]
[Black "toninhojit"]
[Result "1/2-1/2"]
[WhiteElo "2342"]
[BlackElo "2562"]
[TimeControl "180+1"]
[EndTime "8:58:58 PDT"]
[Termination "Game drawn by repetition"]

1. d4 {[%clk 0:02:57.1]} 1... Nf6 {[%clk 0:02:59.4]} 2. Nf3 {[%clk 0:02:50.6]}
2... c5 {[%clk 0:02:59.2]} 3. c3 {[%clk 0:02:50.5]} 3... Qc7 {[%clk 0:02:58.6]}
4. Bg5 {[%clk 0:02:47.5]} 4... e6 {[%clk 0:02:55]} 5. Nbd2 {[%clk 0:02:46.8]}
5... d5 {[%clk 0:02:53.8]} 6. e3 {[%clk 0:02:46.9]} 6... Be7 {[%clk 0:02:53.5]}
7. Bd3 {[%clk 0:02:45.7]} 7... O-O {[%clk 0:02:53.1]} 8. O-O {[%clk 0:02:43.2]}
8... Nc6 {[%clk 0:02:51.5]} 9. dxc5 {[%clk 0:02:38.2]} 9... h6 {[%clk
0:02:44.7]} 10. Bxf6 {[%clk 0:02:37.3]} 10... Bxf6 {[%clk 0:02:45.6]} 11. e4
{[%clk 0:02:36.7]} 11... Rd8 {[%clk 0:02:40.2]} 12. Qe2 {[%clk 0:02:36.3]} 12...
g6 {[%clk 0:02:13.7]} 13. Rac1 {[%clk 0:02:26.5]} 13... a5 {[%clk 0:02:12.7]}
14. Rfe1 {[%clk 0:02:12.8]} 14... Bg7 {[%clk 0:02:12.4]} 15. Nb3 {[%clk
0:02:02.9]} 15... Ne7 {[%clk 0:01:54.7]} 16. a4 {[%clk 0:01:49.8]} 16... Bd7
{[%clk 0:01:44.7]} 17. Bb5 {[%clk 0:01:49]} 17... Bc6 {[%clk 0:01:40.8]} 18. e5
{[%clk 0:01:44.3]} 18... g5 {[%clk 0:01:29]} 19. Nfd4 {[%clk 0:01:43.9]} 19...
Ng6 {[%clk 0:01:28.6]} 20. g3 {[%clk 0:01:22.9]} 20... Nxe5 {[%clk 0:01:24.8]}
21. Rf1 {[%clk 0:00:50.6]} 21... Ng6 {[%clk 0:01:18.6]} 22. Bxc6 {[%clk
0:00:46.5]} 22... bxc6 {[%clk 0:01:19.5]} 23. Rce1 {[%clk 0:00:46.3]} 23... Rab8
{[%clk 0:01:17]} 24. Nc1 {[%clk 0:00:42.6]} 24... Qd7 {[%clk 0:01:06.6]} 25. f4
{[%clk 0:00:39.5]} 25... gxf4 {[%clk 0:00:48.9]} 26. gxf4 {[%clk 0:00:40.4]}
26... Re8 {[%clk 0:00:49.5]} 27. Nd3 {[%clk 0:00:39.2]} 27... e5 {[%clk
0:00:48.7]} 28. fxe5 {[%clk 0:00:37.3]} 28... Nxe5 {[%clk 0:00:49.4]} 29. Nf5
{[%clk 0:00:33.3]} 29... f6 {[%clk 0:00:32.5]} 30. Kh1 {[%clk 0:00:30.6]} 30...
Kh8 {[%clk 0:00:32.3]} 31. Nd4 {[%clk 0:00:07.2]} 31... Nxd3 {[%clk 0:00:22.1]}
32. Qxd3 {[%clk 0:00:08.1]} 32... Rxe1 {[%clk 0:00:22.2]} 33. Rxe1 {[%clk
0:00:08.9]} 33... Qg4 {[%clk 0:00:16.6]} 34. Qg3 {[%clk 0:00:08.1]} 34... Qxg3
{[%clk 0:00:15.8]} 35. hxg3 {[%clk 0:00:09]} 35... Rxb2 {[%clk 0:00:14.1]} 36.
Re7 {[%clk 0:00:08.4]} 36... f5 {[%clk 0:00:14.1]} 37. Nxf5 {[%clk 0:00:08.5]}
37... Bxc3 {[%clk 0:00:14.2]} 38. Rc7 {[%clk 0:00:05.9]} 38... d4 {[%clk
0:00:12]} 39. Rxc6 {[%clk 0:00:05.7]} 39... d3 {[%clk 0:00:12.7]} 40. Rd6 {[%clk
0:00:05.7]} 40... d2 {[%clk 0:00:12.7]} 41. Ne3 {[%clk 0:00:05.9]} 41... Rb1+
{[%clk 0:00:10.7]} 42. Kg2 {[%clk 0:00:06.2]} 42... Re1 {[%clk 0:00:11.4]} 43.
Kf3 {[%clk 0:00:06.1]} 43... Be5 {[%clk 0:00:10.6]} 44. Rd7 {[%clk 0:00:05.8]}
44... Bc3 {[%clk 0:00:07.1]} 45. c6 {[%clk 0:00:05.8]} 45... d1=Q+ {[%clk
0:00:03.3]} 46. Rxd1 {[%clk 0:00:05]} 46... Rxd1 {[%clk 0:00:02.7]} 47. Nxd1
{[%clk 0:00:05.9]} 47... Be5 {[%clk 0:00:03]} 48. Ke4 {[%clk 0:00:06.4]} 48...
Bxg3 {[%clk 0:00:02.6]} 49. Ne3 {[%clk 0:00:06.9]} 49... h5 {[%clk 0:00:03]} 50.
Nf5 {[%clk 0:00:07]} 50... Bc7 {[%clk 0:00:03.2]} 51. Nh4 {[%clk 0:00:04.6]}
51... Kh7 {[%clk 0:00:03.4]} 52. Kf5 {[%clk 0:00:05.1]} 52... Kh6 {[%clk
0:00:03.8]} 53. Ng6 {[%clk 0:00:04]} 53... Kg7 {[%clk 0:00:03]} 54. Ne7 {[%clk
0:00:04]} 54... Kf7 {[%clk 0:00:03.2]} 55. Nd5 {[%clk 0:00:04.3]} 55... Bd6
{[%clk 0:00:02.9]} 56. c7 {[%clk 0:00:04.6]} 56... Bxc7 {[%clk 0:00:03.4]} 57.
Nxc7 {[%clk 0:00:05.5]} 57... Ke7 {[%clk 0:00:04.1]} 58. Nd5+ {[%clk 0:00:05.6]}
58... Kd6 {[%clk 0:00:04.5]} 59. Nb6 {[%clk 0:00:04.5]} 59... Kc5 {[%clk
0:00:04.7]} 60. Nd7+ {[%clk 0:00:04.6]} 60... Kb4 {[%clk 0:00:04.9]} 61. Nb6
{[%clk 0:00:04.6]} 61... Kc5 {[%clk 0:00:05.5]} 62. Nd7+ {[%clk 0:00:03.9]}
62... Kb4 {[%clk 0:00:06.1]} 63. Nb6 {[%clk 0:00:03.9]} 63... Kc5 {[%clk
0:00:03.7]} 1/2-1/2

[Event "Early-Titled-Tuesday-Blitz-May-14-2024"]
[Site "Chess.com"]
[Date "2024.05.14"]
[Round "5"]
[White "CristhianPortalR"]
[Black "temus_galaktionov"]
[Result "1/2-1/2"]
[WhiteElo "2548"]
[BlackElo "2859"]
[TimeControl "180+1"]
[EndTime "8:59:00 PDT"]
[Termination "Game drawn - insufficient material"]

1. c4 {[%clk 0:03:00.9]} 1... c6 {[%clk 0:02:57.6]} 2. e4 {[%clk 0:03:00]} 2...
g6 {[%clk 0:02:58.5]} 3. Nc3 {[%clk 0:02:59]} 3... Bg7 {[%clk 0:02:57.9]} 4.
Nge2 {[%clk 0:02:59.5]} 4... d6 {[%clk 0:02:57.7]} 5. g3 {[%clk 0:02:59.9]} 5...
Nf6 {[%clk 0:02:56.8]} 6. Bg2 {[%clk 0:03:00.6]} 6... O-O {[%clk 0:02:57.7]} 7.
O-O {[%clk 0:03:00.4]} 7... e5 {[%clk 0:02:58.6]} 8. d3 {[%clk 0:03:00.5]} 8...
Nbd7 {[%clk 0:02:58.8]} 9. h3 {[%clk 0:02:59.1]} 9... a5 {[%clk 0:02:59.3]} 10.
Be3 {[%clk 0:02:59.5]} 10... Ne8 {[%clk 0:02:57.5]} 11. Qd2 {[%clk 0:02:57.2]}
11... f5 {[%clk 0:02:57.8]} 12. exf5 {[%clk 0:02:56.3]} 12... gxf5 {[%clk
0:02:58.7]} 13. f4 {[%clk 0:02:56.5]} 13... Qf6 {[%clk 0:02:56.7]} 14. d4 {[%clk
0:02:53.1]} 14... e4 {[%clk 0:02:53.5]} 15. g4 {[%clk 0:02:24.7]} 15... Nb6
{[%clk 0:02:51.3]} 16. b3 {[%clk 0:02:16.8]} 16... fxg4 {[%clk 0:02:50.3]} 17.
Nxe4 {[%clk 0:02:16.5]} 17... Qg6 {[%clk 0:02:49.9]} 18. h4 {[%clk 0:02:11.3]}
18... Qh5 {[%clk 0:02:35.3]} 19. N2g3 {[%clk 0:02:09.4]} 19... Qxh4 {[%clk
0:02:33.9]} 20. f5 {[%clk 0:02:09.7]} 20... Qd8 {[%clk 0:02:15]} 21. Bg5 {[%clk
0:02:02.6]} 21... Nf6 {[%clk 0:02:13.6]} 22. Bxf6 {[%clk 0:01:55.5]} 22... Bxf6
{[%clk 0:02:14.5]} 23. Nh5 {[%clk 0:01:55.8]} 23... Bh4 {[%clk 0:02:08.5]} 24.
Qh6 {[%clk 0:01:51.3]} 24... Rf7 {[%clk 0:01:56.3]} 25. Rf4 {[%clk 0:01:44.7]}
25... Bxf5 {[%clk 0:01:50.5]} 26. Raf1 {[%clk 0:01:41.5]} 26... Qf8 {[%clk
0:01:44]} 27. Qxf8+ {[%clk 0:01:35.6]} 27... Raxf8 {[%clk 0:01:44.9]} 28. Nxd6
{[%clk 0:01:33]} 28... Bg5 {[%clk 0:01:31.7]} 29. Rxf5 {[%clk 0:01:29.3]} 29...
Rxf5 {[%clk 0:01:30.8]} 30. Rxf5 {[%clk 0:01:27]} 30... Be3+ {[%clk 0:01:30.5]}
31. Kf1 {[%clk 0:01:26.1]} 31... Bxd4 {[%clk 0:01:28.3]} 32. Rxf8+ {[%clk
0:01:24.1]} 32... Kxf8 {[%clk 0:01:29.2]} 33. Nxb7 {[%clk 0:01:24]} 33... a4
{[%clk 0:01:17.8]} 34. Bxc6 {[%clk 0:01:23.1]} 34... a3 {[%clk 0:01:12.1]} 35.
c5 {[%clk 0:01:20.7]} 35... Nc8 {[%clk 0:01:11.7]} 36. Nf4 {[%clk 0:01:18.3]}
36... Ke7 {[%clk 0:01:10.8]} 37. Be4 {[%clk 0:01:06.3]} 37... h6 {[%clk
0:01:04.9]} 38. c6 {[%clk 0:01:00.1]} 38... Na7 {[%clk 0:01:00.1]} 39. Ke2
{[%clk 0:00:55.6]} 39... Be5 {[%clk 0:00:57.7]} 40. Ng6+ {[%clk 0:00:54.6]}
40... Kf6 {[%clk 0:00:56.4]} 41. Nc5 {[%clk 0:00:45.4]} 41... Bd6 {[%clk
0:00:52.9]} 42. Nd7+ {[%clk 0:00:40.3]} 42... Kg5 {[%clk 0:00:49.6]} 43. Nh8
{[%clk 0:00:31.8]} 43... Kf4 {[%clk 0:00:49.2]} 44. Bd5 {[%clk 0:00:28.9]} 44...
h5 {[%clk 0:00:48.5]} 45. Nf6 {[%clk 0:00:24.6]} 45... h4 {[%clk 0:00:42.2]} 46.
Ne8 {[%clk 0:00:19.1]} 46... Bc5 {[%clk 0:00:38.9]} 47. c7 {[%clk 0:00:18.1]}
47... h3 {[%clk 0:00:38.2]} 48. Ng6+ {[%clk 0:00:15.5]} 48... Kg5 {[%clk
0:00:38.3]} 49. Ne5 {[%clk 0:00:14.3]} 49... g3 {[%clk 0:00:38.5]} 50. Kf1
{[%clk 0:00:13]} 50... g2+ {[%clk 0:00:34.6]} 51. Bxg2 {[%clk 0:00:12.5]} 51...
hxg2+ {[%clk 0:00:35.5]} 52. Kxg2 {[%clk 0:00:13.4]} 52... Kf5 {[%clk
0:00:34.1]} 53. Nc6 {[%clk 0:00:12.2]} 53... Nc8 {[%clk 0:00:32.4]} 54. b4
{[%clk 0:00:12.6]} 54... Bb6 {[%clk 0:00:31.2]} 55. b5 {[%clk 0:00:10.9]} 55...
Ke6 {[%clk 0:00:30.8]} 56. Kf3 {[%clk 0:00:07.7]} 56... Kd7 {[%clk 0:00:30.7]}
57. Nf6+ {[%clk 0:00:08.1]} 57... Kxc7 {[%clk 0:00:31.1]} 58. Nd5+ {[%clk
0:00:08.4]} 58... Kd6 {[%clk 0:00:31.7]} 59. Ke4 {[%clk 0:00:07.7]} 59... Kc5
{[%clk 0:00:32]} 60. Nd4 {[%clk 0:00:05.6]} 60... Kc4 {[%clk 0:00:26.7]} 61. Nc2
{[%clk 0:00:05.5]} 61... Kxb5 {[%clk 0:00:26.2]} 62. Nxa3+ {[%clk 0:00:04.8]}
62... Ka4 {[%clk 0:00:26.3]} 63. Nc4 {[%clk 0:00:05.3]} 63... Bc5 {[%clk
0:00:26]} 64. Kd3 {[%clk 0:00:04.8]} 64... Nd6 {[%clk 0:00:25.6]} 65. Nc3+
{[%clk 0:00:03.9]} 65... Kb4 {[%clk 0:00:25.3]} 66. Nd5+ {[%clk 0:00:03.9]}
66... Ka4 {[%clk 0:00:25.2]} 67. Ncb6+ {[%clk 0:00:02.3]} 67... Ka3 {[%clk
0:00:24.7]} 68. Nc4+ {[%clk 0:00:02.5]} 68... Kxa2 {[%clk 0:00:24.9]} 69. Nxd6
{[%clk 0:00:02.5]} 69... Bxd6 {[%clk 0:00:25.8]} 1/2-1/2

[Event "Early-Titled-Tuesday-Blitz-May-14-2024"]
[Site "Chess.com"]
[Date "2024.05.14"]
[Round "5"]
[White "cukus"]
[Black "carloseduar100"]
[Result "1-0"]
[WhiteElo "2383"]
[BlackElo "2214"]
[TimeControl "180+1"]
[EndTime "8:59:00 PDT"]
[Termination "cukus won by checkmate"]

1. e4 {[%clk 0:03:00.9]} 1... e6 {[%clk 0:02:51.1]} 2. d4 {[%clk 0:02:59.2]}
2... d5 {[%clk 0:02:42.6]} 3. Nc3 {[%clk 0:02:59.6]} 3... Nf6 {[%clk 0:02:36.2]}
4. e5 {[%clk 0:02:59.7]} 4... Nfd7 {[%clk 0:02:19.1]} 5. f4 {[%clk 0:03:00]}
5... c5 {[%clk 0:02:19.4]} 6. Nf3 {[%clk 0:02:59.8]} 6... Nc6 {[%clk 0:02:20.3]}
7. Be3 {[%clk 0:02:59.9]} 7... Qb6 {[%clk 0:02:20.6]} 8. Qd2 {[%clk 0:02:59.2]}
8... Qxb2 {[%clk 0:02:19.4]} 9. Rb1 {[%clk 0:02:57.1]} 9... Qa3 {[%clk
0:02:19.4]} 10. Bb5 {[%clk 0:02:56.5]} 10... cxd4 {[%clk 0:02:13.9]} 11. Nxd4
{[%clk 0:02:48.2]} 11... Bb4 {[%clk 0:02:10.2]} 12. Rb3 {[%clk 0:02:38.5]} 12...
Qa5 {[%clk 0:02:10]} 13. Bxc6 {[%clk 0:02:25.9]} 13... bxc6 {[%clk 0:01:59.7]}
14. Nxc6 {[%clk 0:02:23.3]} 14... Bxc3 {[%clk 0:01:59.9]} 15. Nxa5 {[%clk
0:02:05.3]} 15... Bxd2+ {[%clk 0:01:59.8]} 16. Kxd2 {[%clk 0:02:06.1]} 16... O-O
{[%clk 0:02:00.1]} 17. Rhb1 {[%clk 0:02:02]} 17... Nb6 {[%clk 0:01:58.7]} 18. a3
{[%clk 0:01:33.7]} 18... Bd7 {[%clk 0:01:40.6]} 19. Bxb6 {[%clk 0:01:13.5]}
19... axb6 {[%clk 0:01:39.6]} 20. Nb7 {[%clk 0:01:14]} 20... b5 {[%clk
0:01:28.1]} 21. Nd6 {[%clk 0:01:13.9]} 21... g6 {[%clk 0:01:25.4]} 22. Kc3
{[%clk 0:01:04.2]} 22... h5 {[%clk 0:01:25.4]} 23. Kb2 {[%clk 0:01:00.9]} 23...
Ra4 {[%clk 0:01:24.6]} 24. g3 {[%clk 0:00:59.9]} 24... Rfa8 {[%clk 0:01:21.1]}
25. Ra1 {[%clk 0:00:56.1]} 25... R4a5 {[%clk 0:01:12.3]} 26. Nb7 {[%clk
0:00:49.3]} 26... R5a7 {[%clk 0:01:08.8]} 27. Nc5 {[%clk 0:00:48.5]} 27... Bc6
{[%clk 0:01:08.7]} 28. c3 {[%clk 0:00:45.4]} 28... Kg7 {[%clk 0:01:05.3]} 29.
Nd3 {[%clk 0:00:41.1]} 29... h4 {[%clk 0:01:00.5]} 30. Nb4 {[%clk 0:00:40.6]}
30... Bd7 {[%clk 0:01:00.4]} 31. Nd3 {[%clk 0:00:40.8]} 31... hxg3 {[%clk
0:01:00.3]} 32. hxg3 {[%clk 0:00:40.7]} 32... Rh8 {[%clk 0:01:00.7]} 33. Rc1
{[%clk 0:00:32.3]} 33... Rh3 {[%clk 0:00:56.4]} 34. Rg1 {[%clk 0:00:32.9]} 34...
Rc7 {[%clk 0:00:46.5]} 35. Rg2 {[%clk 0:00:30.1]} 35... Rc4 {[%clk 0:00:46.3]}
36. Nf2 {[%clk 0:00:25.5]} 36... Rh5 {[%clk 0:00:38.6]} 37. Ng4 {[%clk
0:00:26.1]} 37... Rh1 {[%clk 0:00:30.2]} 38. Nf6 {[%clk 0:00:25.4]} 38... Bc6
{[%clk 0:00:30.5]} 39. Rf2 {[%clk 0:00:20.6]} 39... Rg1 {[%clk 0:00:27.8]} 40.
g4 {[%clk 0:00:18.3]} 40... d4 {[%clk 0:00:19.7]} 41. cxd4 {[%clk 0:00:15.9]}
41... Rxd4 {[%clk 0:00:20.6]} 42. Rc3 {[%clk 0:00:15.7]} 42... Bd5 {[%clk
0:00:20]} 43. Rc8 {[%clk 0:00:15.7]} 43... Rdd1 {[%clk 0:00:12]} 44. Rg8+ {[%clk
0:00:15]} 44... Kh6 {[%clk 0:00:12.6]} 45. g5+ {[%clk 0:00:15.5]} 45... Rxg5
{[%clk 0:00:10.1]} 46. fxg5+ {[%clk 0:00:15.2]} 46... Kxg5 {[%clk 0:00:11]} 47.
Nh7+ {[%clk 0:00:14.6]} 47... Kg4 {[%clk 0:00:11.2]} 48. Nf6+ {[%clk 0:00:14.3]}
48... Kg3 {[%clk 0:00:11.2]} 49. Rc2 {[%clk 0:00:13.4]} 49... Re1 {[%clk
0:00:10.4]} 50. Nxd5 {[%clk 0:00:12.5]} 50... exd5 {[%clk 0:00:11.3]} 51. Rd8
{[%clk 0:00:12.2]} 51... Rxe5 {[%clk 0:00:11.7]} 52. Rd2 {[%clk 0:00:11.8]}
52... f5 {[%clk 0:00:12.2]} 53. R8xd5 {[%clk 0:00:11.9]} 53... Re3 {[%clk
0:00:12.4]} 54. Rxb5 {[%clk 0:00:11.1]} 54... f4 {[%clk 0:00:13.3]} 55. Rb3
{[%clk 0:00:10.9]} 55... g5 {[%clk 0:00:13.5]} 56. a4 {[%clk 0:00:09.8]} 56...
g4 {[%clk 0:00:12.3]} 57. a5 {[%clk 0:00:08.8]} 57... Kf3 {[%clk 0:00:13]} 58.
a6 {[%clk 0:00:08.2]} 58... g3 {[%clk 0:00:13.8]} 59. a7 {[%clk 0:00:07.7]}
59... Rxb3+ {[%clk 0:00:13.3]} 60. Kxb3 {[%clk 0:00:08]} 60... Ke3 {[%clk
0:00:14.2]} 61. Rc2 {[%clk 0:00:07]} 61... f3 {[%clk 0:00:13.9]} 62. a8=Q {[%clk
0:00:07.1]} 62... g2 {[%clk 0:00:14.6]} 63. Qa7+ {[%clk 0:00:06.9]} 63... Kf4
{[%clk 0:00:13.6]} 64. Qf2 {[%clk 0:00:07.1]} 64... Kg4 {[%clk 0:00:14]} 65.
Rc4+ {[%clk 0:00:07.2]} 65... Kh3 {[%clk 0:00:14.9]} 66. Rh4# {[%clk 0:00:07.8]}
1-0

[Event "Early-Titled-Tuesday-Blitz-May-14-2024"]
[Site "Chess.com"]
[Date "2024.05.14"]
[Round "5"]
[White "SharapovEvgeny"]
[Black "Lady_Nika"]
[Result "1-0"]
[WhiteElo "2645"]
[BlackElo "2485"]
[TimeControl "180+1"]
[EndTime "8:59:01 PDT"]
[Termination "SharapovEvgeny won by resignation"]

1. e4 {[%clk 0:02:59.9]} 1... e6 {[%clk 0:02:58.5]} 2. d4 {[%clk 0:02:59.7]}
2... d5 {[%clk 0:02:58.9]} 3. exd5 {[%clk 0:02:59.6]} 3... exd5 {[%clk
0:02:59.1]} 4. Nf3 {[%clk 0:03:00.3]} 4... Nf6 {[%clk 0:02:59.8]} 5. Bd3 {[%clk
0:03:00.1]} 5... Be7 {[%clk 0:02:57.4]} 6. O-O {[%clk 0:02:59.7]} 6... O-O
{[%clk 0:02:58.3]} 7. h3 {[%clk 0:02:59.9]} 7... c6 {[%clk 0:02:56.7]} 8. Bf4
{[%clk 0:02:59.2]} 8... Nbd7 {[%clk 0:02:56.3]} 9. Nbd2 {[%clk 0:02:58.8]} 9...
Re8 {[%clk 0:02:56.6]} 10. Re1 {[%clk 0:02:58.7]} 10... Nf8 {[%clk 0:02:56.8]}
11. c3 {[%clk 0:02:58.3]} 11... Ng6 {[%clk 0:02:51.2]} 12. Bh2 {[%clk
0:02:58.1]} 12... Bd7 {[%clk 0:02:46.8]} 13. Ne5 {[%clk 0:02:57.7]} 13... Qb6
{[%clk 0:02:46.1]} 14. Qb3 {[%clk 0:02:53.3]} 14... Be6 {[%clk 0:02:25.8]} 15.
Nxg6 {[%clk 0:02:48.7]} 15... hxg6 {[%clk 0:02:22.1]} 16. Bxg6 {[%clk 0:02:44]}
16... Bxh3 {[%clk 0:02:19.7]} 17. Bxf7+ {[%clk 0:02:42.9]} 17... Kxf7 {[%clk
0:02:19.8]} 18. gxh3 {[%clk 0:02:43.3]} 18... Rh8 {[%clk 0:02:16.2]} 19. Qxb6
{[%clk 0:02:40.2]} 19... axb6 {[%clk 0:02:16.1]} 20. Kg2 {[%clk 0:02:40]} 20...
Nh5 {[%clk 0:02:12.1]} 21. Nf3 {[%clk 0:02:36.7]} 21... Bf6 {[%clk 0:02:09.5]}
22. a3 {[%clk 0:02:35.1]} 22... Rag8 {[%clk 0:02:07.7]} 23. Ne5+ {[%clk
0:02:33.2]} 23... Bxe5 {[%clk 0:02:07.1]} 24. Rxe5 {[%clk 0:02:31.6]} 24... g5
{[%clk 0:02:06.1]} 25. Rh1 {[%clk 0:02:03.2]} 25... Nf6 {[%clk 0:01:54.1]} 26.
f3 {[%clk 0:01:57.5]} 26... Kg6 {[%clk 0:01:48.4]} 27. Bg3 {[%clk 0:01:54.2]}
27... Nh5 {[%clk 0:01:45.7]} 28. Re7 {[%clk 0:01:46.5]} 28... Rh7 {[%clk
0:01:38.8]} 29. Rxh7 {[%clk 0:01:44.6]} 29... Kxh7 {[%clk 0:01:39.7]} 30. Re1
{[%clk 0:01:35.9]} 30... Rg7 {[%clk 0:01:38.8]} 31. Re5 {[%clk 0:01:29.1]} 31...
Kg6 {[%clk 0:01:36]} 32. Bh2 {[%clk 0:01:20.1]} 32... Rf7 {[%clk 0:01:33.5]} 33.
Re6+ {[%clk 0:01:14.8]} 33... Kf5 {[%clk 0:01:31.4]} 34. Re5+ {[%clk 0:01:12.7]}
34... Kg6 {[%clk 0:01:31.2]} 35. Re8 {[%clk 0:01:12.3]} 35... b5 {[%clk
0:01:27.5]} 36. Rg8+ {[%clk 0:01:05.9]} 36... Kh6 {[%clk 0:01:27.3]} 37. Be5
{[%clk 0:00:58.9]} 37... Re7 {[%clk 0:01:22.7]} 38. Kf2 {[%clk 0:00:51.1]} 38...
Rf7 {[%clk 0:01:18.7]} 39. Ke3 {[%clk 0:00:48.1]} 39... Re7 {[%clk 0:01:16.9]}
40. Kf2 {[%clk 0:00:40.6]} 40... Rf7 {[%clk 0:01:16.6]} 41. Rc8 {[%clk 0:00:36]}
41... Nf4 {[%clk 0:01:07.4]} 42. Bxf4 {[%clk 0:00:35.6]} 42... gxf4 {[%clk
0:01:07.3]} 43. Rg8 {[%clk 0:00:30.8]} 43... Kh5 {[%clk 0:01:06.7]} 44. Rg4
{[%clk 0:00:29.8]} 44... Kh6 {[%clk 0:01:04.6]} 45. Ke2 {[%clk 0:00:29.3]} 45...
Kh5 {[%clk 0:01:04.6]} 46. Kd2 {[%clk 0:00:28.9]} 46... Kh6 {[%clk 0:01:04.2]}
47. Kc2 {[%clk 0:00:29.1]} 47... Kh5 {[%clk 0:01:02.2]} 48. Kb3 {[%clk
0:00:29.4]} 48... Kh6 {[%clk 0:01:01.5]} 49. Kb4 {[%clk 0:00:29.4]} 49... b6
{[%clk 0:01:01.6]} 50. a4 {[%clk 0:00:29.6]} 50... bxa4 {[%clk 0:00:59.8]} 51.
Kxa4 {[%clk 0:00:30.1]} 51... Ra7+ {[%clk 0:00:57.3]} 52. Kb3 {[%clk 0:00:30]}
52... Rf7 {[%clk 0:00:56.8]} 53. c4 {[%clk 0:00:29.8]} 53... dxc4+ {[%clk
0:00:52.2]} 54. Kxc4 {[%clk 0:00:29.9]} 54... Rf5 {[%clk 0:00:52.4]} 55. b4
{[%clk 0:00:26.5]} 55... Kh5 {[%clk 0:00:52.3]} 56. Kd3 {[%clk 0:00:26.4]} 56...
Rb5 {[%clk 0:00:42.2]} 57. Kc3 {[%clk 0:00:26.5]} 57... Rf5 {[%clk 0:00:42.1]}
58. Kc4 {[%clk 0:00:25.5]} 58... Kh6 {[%clk 0:00:38.6]} 59. h4 {[%clk
0:00:25.6]} 59... Rf8 {[%clk 0:00:20.6]} 60. d5 {[%clk 0:00:22.7]} 60... cxd5+
{[%clk 0:00:20.4]} 61. Kxd5 {[%clk 0:00:23.2]} 61... Rf5+ {[%clk 0:00:20.7]} 62.
Kc6 {[%clk 0:00:22.4]} 62... b5 {[%clk 0:00:21]} 63. Rg5 {[%clk 0:00:20.5]}
63... Rf6+ {[%clk 0:00:21]} 64. Kxb5 {[%clk 0:00:20.3]} 64... Re6 {[%clk
0:00:20.6]} 65. Rf5 {[%clk 0:00:19.3]} 65... Re3 {[%clk 0:00:18.8]} 66. Rxf4
{[%clk 0:00:19.4]} 66... Kh5 {[%clk 0:00:19.1]} 67. Kc5 {[%clk 0:00:19.5]} 67...
Rc3+ {[%clk 0:00:18.7]} 68. Rc4 {[%clk 0:00:19.7]} 68... Rxf3 {[%clk 0:00:18.4]}
69. b5 {[%clk 0:00:20.3]} 69... Rf5+ {[%clk 0:00:17.1]} 70. Kb4 {[%clk
0:00:20.5]} 70... Rf1 {[%clk 0:00:16.7]} 71. b6 {[%clk 0:00:20.5]} 71... Kg6
{[%clk 0:00:14.6]} 72. Kb5 {[%clk 0:00:20.6]} 72... Kf6 {[%clk 0:00:14.4]} 73.
b7 {[%clk 0:00:20.9]} 73... Rb1+ {[%clk 0:00:14]} 74. Rb4 {[%clk 0:00:21.3]} 1-0